fUSD/lending_fUSD_20250120
["ID","MTS","AMOUNT","RATE_DAILY","PERIOD"]
[349636072,1737341432594,-3592.79863,0.00020857,2]
[349636073,1737341432606,-3590.61534836,0.00020857,2]
[349636074,1737341432617,-619.53546235,0.00020857,2]
[349636075,1737341432628,-8422.23952326,0.00020857,2]
[349636076,1737341432655,-123.87627313,0.00020857,2]
[349636077,1737341432664,-297.47952677,0.00020859,2]
[349636078,1737341432677,-355.79999989,0.00020859,2]
[349636079,1737341432689,-278.06409137,0.00020859,2]
[349636080,1737341432701,-2185.53507333,0.00020859,2]
[349636081,1737341432721,-254.46,0.00020859,2]
[349636082,1737341432732,-430.39831224,0.00020859,2]
[349636083,1737341432741,-292.77877811,0.0002086,2]
[349636084,1737341432751,-292.77877811,0.00020891,2]
[349636085,1737341432759,-1219.59027762,0.00020894,2]
[349636086,1737341432771,-1151.55012815,0.00020894,2]
[349636087,1737341432782,-256.7011023,0.00020894,2]
[349636088,1737341432793,-32199.26685794,0.00020894,2]
[349636089,1737341432803,-34827.10836601,0.00020896,2]
[349636090,1737341432812,-337.14997497,0.000209,2]
[349636091,1737341432821,-364.30336213,0.00020906,2]
[349636092,1737341432830,-292.77877811,0.0002091,2]
[349636093,1737341432842,-7732.867698,0.0002091,2]
[349636094,1737341432851,-364.30336213,0.00020913,2]
[349636095,1737341432860,-7732.867698,0.00020914,2]
[349636096,1737341432870,-34827.10836601,0.00020916,2]
[349636097,1737341432879,-3801.7370036,0.00020923,2]
[349636098,1737341432888,-292.77877811,0.00020928,2]
[349636099,1737341432897,-3801.7370036,0.00020941,2]
[349636100,1737341432907,-3801.7370036,0.00020945,2]
[349636101,1737341432916,-200.0,0.00020945,2]
[349636102,1737341432926,-364.30336213,0.00020945,2]
[349636104,1737341432938,-2840.85,0.00020999,2]
[349636105,1737341432947,-500.0,0.00020999,2]
[349636107,1737341432956,-500.0,0.00020999,2]
[349636118,1737341432965,-652.36,0.00020999,2]
[349636119,1737341433228,-523.49641553,0.00020999,2]
[349636120,1737341433240,-500.0,0.00020999,2]
[349636121,1737341433251,-500.0,0.00020999,2]
[349636122,1737341433262,-500.0,0.00020999,2]
[349636123,1737341433273,-606.63,0.00020999,2]
[349636124,1737341433283,-597.11,0.00020999,2]
[349636125,1737341433294,-500.0,0.00020999,2]
[349636126,1737341433304,-500.0,0.00020999,2]
[349636127,1737341433314,-695297.4294237,0.00021,2]
[349636128,1737341433326,-4200.0,0.00021,2]
[349636129,1737341433343,-8105.5705763,0.00021,2]
[349636130,1737341433353,-2428.04138626,0.00021,2]
[349636131,1737341433365,-409.8822205,0.00021,2]
[349636137,1737341438270,-500.0,0.00020999,2]
[349636138,1737341438280,-500.0,0.00020999,2]
[349636139,1737341438289,-1097.492,0.00021,2]
[349636140,1737341438301,-500.0,0.00021,2]
[349636195,1737341439185,-160683.18715558,0.00021,2]
[349636199,1737341439209,-2690.36636677,0.00021,2]
[349636201,1737341439220,-32629.03087089,0.00021,2]
[349636203,1737341439230,-163.58846744,0.00021097,2]
[349636205,1737341439239,-153.14,0.00021187,2]
[349636207,1737341439248,-500.0,0.00021196,2]
[349636209,1737341439257,-501.57,0.00021196,2]
[349636211,1737341439267,-894.54623581,0.00021196,2]
[349636213,1737341439278,-45.43376419,0.00021196,2]
[349636215,1737341439288,-200.0,0.00021196,2]
[349636217,1737341439297,-635.03211966,0.00021196,2]
[349636219,1737341439306,-500.0,0.00021196,2]
[349636221,1737341439315,-507.26536907,0.00021196,2]
[349636223,1737341439325,-500.0,0.00021196,2]
[349636225,1737341439335,-631.72,0.00021196,2]
[349636227,1737341439347,-547.66353026,0.00021196,2]
[349636229,1737341439356,-500.0,0.00021196,2]
[349636231,1737341439365,-1778.15,0.00021196,2]
[349636233,1737341439374,-500.0,0.00021196,2]
[349636235,1737341439384,-191.0,0.00021196,2]
[349636237,1737341439393,-500.0,0.00021196,2]
[349636239,1737341439402,-183.70976946,0.00021196,2]
[349636241,1737341439411,-513.46460012,0.00021196,2]
[349636243,1737341439421,-762.15,0.00021196,2]
[349636245,1737341439429,-581.44960768,0.00021196,2]
[349636247,1737341439439,-500.0,0.00021196,2]
[349636249,1737341439448,-307.44711046,0.00021196,2]
[349636251,1737341439457,-500.0,0.00021196,2]
[349636253,1737341439466,-873.56,0.00021196,2]
[349636255,1737341439475,-163.38311584,0.00021196,2]
[349636257,1737341439485,-507.66938206,0.00021196,2]
[349636258,1737341439494,-500.0,0.00021196,2]
[349636259,1737341439503,-500.0,0.00021196,2]
[349636260,1737341439512,-500.0,0.00021196,2]
[349636261,1737341439521,-500.0,0.00021196,2]
[349636262,1737341439530,-500.0,0.00021196,2]
[349636263,1737341439539,-500.0,0.00021196,2]
[349636264,1737341439548,-500.0,0.00021196,2]
[349636265,1737341439557,-500.0,0.00021196,2]
[349636266,1737341439566,-953.8,0.00021196,2]
[349636267,1737341439575,-500.0,0.00021196,2]
[349636268,1737341439584,-500.0,0.00021196,2]
[349636270,1737341439598,-500.0,0.00021196,2]
[349636273,1737341439607,-1758.93,0.00021196,2]
[349636275,1737341439618,-500.0,0.00021196,2]
[349636277,1737341439628,-500.0,0.00021196,2]
[349636278,1737341439637,-719.25,0.00021196,2]
[349636280,1737341439646,-506.504763,0.00021196,2]
[349636282,1737341439656,-511.38587034,0.00021196,2]
[349636284,1737341439666,-510.10915573,0.00021196,2]
[349636286,1737341439675,-500.0,0.00021196,2]
[349636288,1737341439684,-424.30940062,0.00021196,2]
[349636290,1737341439694,-617.45795111,0.00021196,2]
[349636292,1737341439703,-2461.76,0.00021196,2]
[349636294,1737341439712,-500.0,0.00021196,2]
[349636296,1737341439721,-500.0,0.00021196,2]
[349636298,1737341439730,-929.83,0.00021196,2]
[349636300,1737341439739,-500.0,0.00021196,2]
[349636302,1737341439748,-524.70756169,0.00021196,2]
[349636304,1737341439758,-500.0,0.00021196,2]
[349636306,1737341439768,-649.0,0.00021196,2]
[349636308,1737341439778,-513.11861752,0.00021196,2]
[349636310,1737341439787,-500.0,0.00021196,2]
[349636312,1737341439795,-500.0,0.00021196,2]
[349636314,1737341439805,-508.74594674,0.00021196,2]
[349636316,1737341439813,-500.0,0.00021196,2]
[349636318,1737341439822,-500.0,0.00021196,2]
[349636320,1737341439832,-1088.95,0.00021196,2]
[349636322,1737341439844,-500.0,0.00021197,2]
[349636324,1737341439853,-900.62,0.00021197,2]
[349636326,1737341439862,-1897.1,0.00021197,2]
[349636328,1737341439872,-500.0,0.00021197,2]
[349636329,1737341439881,-2315.02,0.00021197,2]
[349636331,1737341439890,-615.3,0.00021197,2]
[349636334,1737341439900,-2482.3,0.00021197,2]
[349636336,1737341439909,-757.87,0.00021197,2]
[349636338,1737341439918,-500.0,0.00021197,2]
[349636339,1737341439928,-500.0,0.00021197,2]
[349636340,1737341439940,-500.0,0.00021197,2]
[349636341,1737341439949,-1398.17,0.00021197,2]
[349636342,1737341439959,-2094.58,0.00021197,2]
[349636343,1737341439969,-629.1411425,0.00021197,2]
[349636344,1737341439979,-500.0,0.00021197,2]
[349636345,1737341439988,-504.69,0.00021197,2]
[349636346,1737341439998,-596.17908673,0.00021197,2]
[349636347,1737341440007,-500.0,0.00021197,2]
[349636348,1737341440017,-503.54532485,0.00021197,2]
[349636349,1737341440026,-1099.08,0.00021197,2]
[349636350,1737341440036,-1914.5,0.00021197,2]
[349636351,1737341440046,-291.76887097,0.00021197,2]
[349636352,1737341440055,-317.03964482,0.00021197,2]
[349636353,1737341440064,-500.0,0.00021197,2]
[349636354,1737341440073,-694.52,0.00021197,2]
[349636355,1737341440082,-500.0,0.00021197,2]
[349636358,1737341440236,-1870.05,0.00021197,2]
[349636359,1737341440294,-1035.35,0.00021197,2]
[349636360,1737341440304,-1948.3,0.00021197,2]
[349636361,1737341440314,-1880.06,0.00021197,2]
[349636362,1737341440323,-778.0,0.00021197,2]
[349636363,1737341440332,-529.44,0.00021197,2]
[349636364,1737341440342,-500.0,0.00021197,2]
[349636365,1737341440352,-833.04534633,0.00021197,2]
[349636366,1737341440637,-461.42465367,0.00021197,2]
[349636367,1737341440647,-500.0,0.00021197,2]
[349636368,1737341440656,-3986.99,0.00021197,2]
[349636369,1737341440666,-500.0,0.00021197,2]
[349636370,1737341440675,-500.0,0.00021197,2]
[349636371,1737341440685,-1171.05,0.00021197,2]
[349636372,1737341440695,-869.79,0.00021197,2]
[349636373,1737341440705,-2744.18203712,0.00021197,2]
[349636374,1737341440717,-2126.63796288,0.00021197,2]
[349636375,1737341440727,-3627.78,0.00021197,2]
[349636376,1737341440738,-194.86534115,0.00021197,2]
[349636377,1737341440749,-500.0,0.00021197,2]
[349636378,1737341440759,-500.0,0.00021197,2]
[349636379,1737341440769,-1690.67,0.00021197,2]
[349636380,1737341440780,-892.06,0.00021197,2]
[349636381,1737341440789,-500.0,0.00021197,2]
[349636382,1737341440799,-500.0,0.00021197,2]
[349636383,1737341440808,-2722.59,0.00021197,2]
[349636384,1737341440819,-1195.86,0.00021197,2]
[349636385,1737341440831,-2123.47,0.00021197,2]
[349636386,1737341440846,-500.0,0.00021197,2]
[349636387,1737341440860,-500.0,0.00021197,2]
[349636388,1737341440869,-630.65791776,0.00021197,2]
[349636389,1737341440879,-1029.67,0.00021197,2]
[349636390,1737341440890,-500.0,0.00021197,2]
[349636391,1737341440899,-529.39333535,0.00021197,2]
[349636392,1737341440911,-858.50666465,0.00021197,2]
[349636393,1737341440920,-500.0,0.00021197,2]
[349636394,1737341440930,-790.42,0.00021197,2]
[349636395,1737341440940,-475.34801207,0.00021197,2]
[349636396,1737341440952,-500.0,0.00021197,2]
[349636397,1737341440961,-3392.88,0.00021197,2]
[349636398,1737341440970,-500.0,0.00021197,2]
[349636399,1737341440979,-4539.75,0.00021197,2]
[349636400,1737341440989,-659.67,0.00021197,2]
[349636401,1737341440999,-7232.39,0.00021197,2]
[349636402,1737341441008,-1483.11,0.00021197,2]
[349636403,1737341441017,-942.59,0.00021197,2]
[349636404,1737341441029,-1689.67,0.00021197,2]
[349636405,1737341441039,-1582.85,0.00021197,2]
[349636406,1737341441048,-1366.94,0.00021197,2]
[349636407,1737341441057,-500.0,0.00021197,2]
[349636408,1737341441067,-11936.95,0.00021197,2]
[349636409,1737341441076,-500.0,0.00021197,2]
[349636410,1737341441086,-1552.47,0.00021197,2]
[349636411,1737341441099,-500.0,0.00021197,2]
[349636412,1737341441108,-500.0,0.00021197,2]
[349636413,1737341441117,-500.0,0.00021197,2]
[349636414,1737341441126,-650.09,0.00021197,2]
[349636415,1737341441135,-1131.54,0.00021197,2]
[349636416,1737341441145,-2304.58,0.00021197,2]
[349636418,1737341441154,-2194.46,0.00021197,2]
[349636419,1737341441164,-932.41,0.00021197,2]
[349636421,1737341441173,-192.4938656,0.00021197,2]
[349636423,1737341441182,-500.0,0.00021197,2]
[349636424,1737341441194,-717.65,0.00021197,2]
[349636426,1737341441208,-2289.72,0.00021197,2]
[349636428,1737341441217,-3986.3,0.00021197,2]
[349636429,1737341441226,-4241.31,0.00021197,2]
[349636431,1737341441235,-638.30826305,0.00021197,2]
[349636432,1737341441245,-1097.0,0.00021197,2]
[349636433,1737341441254,-502.78833435,0.00021197,2]
[349636434,1737341441263,-10204.92,0.00021197,2]
[349636435,1737341441272,-500.0,0.00021197,2]
[349636436,1737341441282,-182.466387,0.00021197,2]
[349636437,1737341441291,-5268.84,0.00021197,2]
[349636438,1737341441300,-863.26,0.00021197,2]
[349636439,1737341441309,-1492.23,0.00021197,2]
[349636440,1737341441318,-3853.45,0.00021197,2]
[349636441,1737341441327,-500.0,0.00021197,2]
[349636442,1737341441337,-500.0,0.00021197,2]
[349636443,1737341441349,-500.0,0.00021197,2]
[349636444,1737341441358,-200.0,0.00021197,2]
[349636445,1737341441368,-531.69796447,0.00021197,2]
[349636446,1737341441378,-2295.54,0.00021197,2]
[349636447,1737341441387,-558.32,0.00021197,2]
[349636448,1737341441396,-500.0,0.00021197,2]
[349636449,1737341441405,-6423.01,0.00021197,2]
[349636450,1737341441415,-673.28,0.00021197,2]
[349636451,1737341441424,-1692.99,0.00021197,2]
[349636452,1737341441433,-1102.46,0.00021197,2]
[349636453,1737341441442,-1866.25,0.00021197,2]
[349636454,1737341441451,-532.6323368,0.00021197,2]
[349636455,1737341441461,-1135.79,0.00021197,2]
[349636456,1737341441470,-522.0,0.00021198,2]
[349636457,1737341441480,-424.6865,0.00021271,2]
[349636458,1737341441490,-2840.85,0.00021273,2]
[349636459,1737341441499,-500.0,0.00021273,2]
[349636460,1737341441508,-500.0,0.00021273,2]
[349636461,1737341441518,-652.36,0.00021273,2]
[349636462,1737341441528,-213.57,0.00021273,2]
[349636463,1737341441537,-500.0,0.00021273,2]
[349636464,1737341441546,-597.11,0.00021273,2]
[349636465,1737341441556,-500.0,0.00021273,2]
[349636466,1737341441567,-500.0,0.00021273,2]
[349636467,1737341441576,-212.65492375,0.00021273,2]
[349636468,1737341441585,-500.0,0.00021273,2]
[349636469,1737341441598,-150.0,0.000213,2]
[349636470,1737341441608,-500.0,0.00021356,2]
[349636471,1737341441618,-153.14,0.00021361,2]
[349636472,1737341441627,-500.0,0.0002137,2]
[349636473,1737341441637,-500.0,0.0002137,2]
[349636474,1737341441646,-1180.97,0.0002137,2]
[349636475,1737341441656,-1356.24,0.0002137,2]
[349636476,1737341441666,-2199.8,0.0002137,2]
[349636477,1737341441677,-1331.89,0.0002137,2]
[349636478,1737341441688,-3013.95,0.0002137,2]
[349636479,1737341441698,-1092.39,0.0002137,2]
[349636480,1737341441707,-3622.66,0.0002137,2]
[349636481,1737341441717,-1764.85,0.0002137,2]
[349636482,1737341441727,-899.23,0.0002137,2]
[349636483,1737341441737,-1042.88,0.0002137,2]
[349636484,1737341441746,-2663.83,0.0002137,2]
[349636485,1737341441756,-1389.6002,0.0002137,2]
[349636486,1737341441766,-159.844328,0.0002137,2]
[349636487,1737341441775,-982.13,0.0002137,2]
[349636488,1737341441785,-157.726337,0.0002137,2]
[349636489,1737341441794,-500.0,0.0002137,2]
[349636490,1737341441804,-55555.0,0.00021371,2]
[349636491,1737341441814,-200.0,0.00021409,2]
[349636492,1737341441825,-316.820499,0.00021458,2]
[349636493,1737341441836,-153.14,0.00021461,2]
[349636494,1737341441849,-153.14,0.00021461,2]
[349636495,1737341441859,-500.0,0.0002147,2]
[349636496,1737341441869,-500.0,0.0002147,2]
[349636497,1737341441880,-500.0,0.0002147,2]
[349636498,1737341441890,-528.62,0.0002147,2]
[349636499,1737341441900,-1115.44,0.0002147,2]
[349636500,1737341441911,-904.0,0.0002147,2]
[349636501,1737341441922,-644.02,0.0002147,2]
[349636502,1737341441932,-500.0,0.0002147,2]
[349636503,1737341441947,-655.36,0.0002147,2]
[349636504,1737341441957,-1653.16,0.0002147,2]
[349636505,1737341441966,-675.33,0.0002147,2]
[349636506,1737341441976,-420.03248547,0.0002147,2]
[349636507,1737341441995,-500.0,0.00021196,2]
[349636508,1737341442004,-79.96751453,0.0002147,2]
[349636509,1737341442014,-1593.94,0.0002147,2]
[349636510,1737341442024,-789.79,0.0002147,2]
[349636511,1737341442033,-664.08,0.0002147,2]
[349636512,1737341442042,-500.0,0.0002147,2]
[349636513,1737341442052,-1383.67,0.0002147,2]
[349636514,1737341442061,-2038.09,0.0002147,2]
[349636515,1737341442070,-2310.83,0.0002147,2]
[349636516,1737341442079,-1037.6,0.0002147,2]
[349636517,1737341442088,-1897.64,0.0002147,2]
[349636518,1737341442099,-500.0,0.0002147,2]
[349636519,1737341442109,-1097.94,0.0002147,2]
[349636520,1737341442118,-2543.37,0.0002147,2]
[349636521,1737341442128,-1573.52,0.0002147,2]
[349636522,1737341442137,-659.32,0.0002147,2]
[349636523,1737341442147,-520.41,0.0002147,2]
[349636524,1737341442157,-2097.94,0.0002147,2]
[349636525,1737341442166,-500.0,0.0002147,2]
[349636526,1737341442175,-1561.67,0.0002147,2]
[349636527,1737341442185,-341.85578891,0.0002147,2]
[349636528,1737341442194,-500.0,0.0002147,2]
[349636529,1737341442203,-2851.54,0.0002147,2]
[349636530,1737341442213,-500.0,0.0002147,2]
[349636531,1737341442222,-2160.5,0.0002147,2]
[349636532,1737341442231,-1189.16,0.0002147,2]
[349636533,1737341442241,-514.76212634,0.0002147,2]
[349636534,1737341442250,-508.85379179,0.0002147,2]
[349636535,1737341442260,-500.0,0.0002147,2]
[349636536,1737341442269,-500.0,0.0002147,2]
[349636537,1737341442278,-1514.42,0.0002147,2]
[349636538,1737341442288,-1032.48,0.0002147,2]
[349636539,1737341442297,-2425.79,0.0002147,2]
[349636540,1737341442307,-581.93291057,0.0002147,2]
[349636541,1737341442317,-500.0,0.0002147,2]
[349636542,1737341442327,-500.0,0.0002147,2]
[349636543,1737341442336,-1543.16,0.0002147,2]
[349636544,1737341442347,-518.30214457,0.0002147,2]
[349636545,1737341442357,-500.0,0.0002147,2]
[349636546,1737341442367,-2749.48,0.0002147,2]
[349636547,1737341442376,-500.0,0.0002147,2]
[349636548,1737341442385,-500.0,0.0002147,2]
[349636549,1737341442395,-427.07711885,0.0002147,2]
[349636550,1737341442407,-149.07288115,0.0002147,2]
[349636551,1737341442417,-500.0,0.0002147,2]
[349636552,1737341442426,-626.28,0.0002147,2]
[349636553,1737341442436,-500.0,0.0002147,2]
[349636554,1737341442445,-500.0,0.0002147,2]
[349636555,1737341442455,-500.0,0.0002147,2]
[349636556,1737341442465,-500.0,0.0002147,2]
[349636557,1737341442474,-500.0,0.0002147,2]
[349636558,1737341442484,-501.57,0.0002147,2]
[349636559,1737341442498,-1087.33,0.0002147,2]
[349636560,1737341442508,-939.98,0.0002147,2]
[349636561,1737341442520,-200.0,0.0002147,2]
[349636562,1737341442529,-3012.1,0.0002147,2]
[349636563,1737341442538,-500.0,0.0002147,2]
[349636564,1737341442547,-500.0,0.0002147,2]
[349636565,1737341442556,-631.72,0.0002147,2]
[349636566,1737341442565,-500.0,0.0002147,2]
[349636567,1737341442574,-941.30281191,0.0002147,2]
[349636568,1737341442586,-836.84718809,0.0002147,2]
[349636569,1737341442597,-179.61102251,0.0002147,2]
[349636570,1737341442609,-274.50242182,0.0002147,2]
[349636571,1737341442628,-45.88655567,0.0002147,2]
[349636572,1737341442638,-454.11344433,0.0002147,2]
[349636573,1737341442649,-308.03655567,0.0002147,2]
[349636574,1737341442658,-500.0,0.0002147,2]
[349636575,1737341442667,-515.23561721,0.0002147,2]
[349636576,1737341442677,-873.56,0.0002147,2]
[349636577,1737341442686,-158.29285451,0.0002147,2]
[349636578,1737341442695,-500.0,0.0002147,2]
[349636579,1737341442704,-500.0,0.0002147,2]
[349636580,1737341442713,-597.45316965,0.0002147,2]
[349636581,1737341442722,-500.0,0.0002147,2]
[349636582,1737341442926,-187.9312638,0.0002147,2]
[349636583,1737341442958,-500.0,0.00020999,2]
[349636584,1737341442968,-44.32727247,0.0002147,2]
[349636594,1737341443270,-500.0,0.00020999,2]
[349636595,1737341443281,-500.0,0.00021197,2]
[349636596,1737341443290,-500.0,0.00021197,2]
[349636597,1737341443300,-500.0,0.00021273,2]
[349636598,1737341443309,-500.0,0.00021273,2]
[349636599,1737341443318,-500.0,0.00021469,2]
[349636600,1737341443329,-267.74146373,0.0002147,2]
[349636601,1737341443338,-500.0,0.0002147,2]
[349636602,1737341443349,-500.0,0.0002147,2]
[349636603,1737341443358,-953.8,0.0002147,2]
[349636604,1737341443368,-500.0,0.0002147,2]
[349636605,1737341443377,-500.0,0.0002147,2]
[349636606,1737341443387,-500.0,0.0002147,2]
[349636608,1737341443396,-1758.93,0.0002147,2]
[349636610,1737341443406,-329.60831196,0.0002147,2]
[349636613,1737341443438,-236.49830534,0.0002147,2]
[349636614,1737341443448,-481.20505435,0.0002147,2]
[349636615,1737341443459,-18.79494565,0.0002147,2]
[349636616,1737341443469,-314.79024159,0.0002147,2]
[349636617,1737341443480,-404.45975841,0.0002147,2]
[349636618,1737341443490,-500.0,0.0002147,2]
[349636619,1737341443499,-1054.80024163,0.0002147,2]
[349636620,1737341443510,-1220.9,0.0002147,2]
[349636621,1737341443540,-186.05975837,0.0002147,2]
[349636622,1737341443550,-500.0,0.0002147,2]
[349636623,1737341443560,-414.75724163,0.0002147,2]
[349636624,1737341443580,-85.24275837,0.0002147,2]
[349636625,1737341443589,-809.76169237,0.0002147,2]
[349636626,1737341443609,-120.06830763,0.0002147,2]
[349636627,1737341443618,-500.0,0.0002147,2]
[349636628,1737341443628,-500.0,0.0002147,2]
[349636629,1737341443637,-649.0,0.0002147,2]
[349636630,1737341443647,-500.0,0.0002147,2]
[349636631,1737341443656,-500.0,0.0002147,2]
[349636632,1737341443665,-517.98863714,0.0002147,2]
[349636633,1737341443674,-307.25290024,0.0002147,2]
[349636634,1737341443683,-894.78619465,0.0002147,2]
[349636635,1737341443695,-194.16380535,0.0002147,2]
[349636636,1737341443704,-295.01119464,0.00021471,2]
[349636642,1737341444114,-214.6033424,0.00021471,2]
[349636644,1737341444123,-619.88,0.00021471,2]
[349636646,1737341444133,-674.03,0.00021471,2]
[349636648,1737341444142,-500.0,0.00021471,2]
[349636650,1737341444152,-1146.67,0.00021471,2]
[349636652,1737341444161,-500.0,0.00021471,2]
[349636654,1737341444171,-500.0,0.00021471,2]
[349636656,1737341444180,-500.0,0.00021471,2]
[349636658,1737341444190,-500.0,0.00021471,2]
[349636660,1737341444199,-500.0,0.00021471,2]
[349636662,1737341444208,-500.0,0.00021471,2]
[349636664,1737341444217,-500.0,0.00021471,2]
[349636666,1737341444227,-500.0,0.00021471,2]
[349636668,1737341444236,-500.0,0.00021471,2]
[349636670,1737341444245,-1918.53,0.00021471,2]
[349636672,1737341444255,-756.35,0.00021471,2]
[349636674,1737341444264,-1190.54,0.00021471,2]
[349636676,1737341444273,-500.0,0.00021471,2]
[349636678,1737341444283,-1376.1,0.00021471,2]
[349636680,1737341444292,-1612.27,0.00021471,2]
[349636682,1737341444301,-500.0,0.00021471,2]
[349636684,1737341444311,-1116.4,0.00021471,2]
[349636685,1737341444320,-940.79,0.00021471,2]
[349636686,1737341444329,-500.0,0.00021471,2]
[349636687,1737341444338,-676.28,0.00021471,2]
[349636688,1737341444349,-1127.83,0.00021471,2]
[349636689,1737341444359,-2271.56,0.00021471,2]
[349636690,1737341444368,-500.0,0.00021471,2]
[349636691,1737341444377,-600.68,0.00021471,2]
[349636692,1737341444387,-500.0,0.00021471,2]
[349636693,1737341444396,-712.38,0.00021471,2]
[349636694,1737341444405,-500.0,0.00021471,2]
[349636695,1737341444415,-500.0,0.00021471,2]
[349636696,1737341444424,-2083.23,0.00021471,2]
[349636697,1737341444433,-597.19,0.00021471,2]
[349636698,1737341444443,-500.0,0.00021471,2]
[349636699,1737341444452,-518.89,0.00021471,2]
[349636700,1737341444461,-500.0,0.00021471,2]
[349636701,1737341444470,-500.0,0.00021471,2]
[349636702,1737341444480,-585.28,0.00021471,2]
[349636703,1737341444489,-555.85,0.00021471,2]
[349636704,1737341444499,-565.3,0.00021471,2]
[349636705,1737341444508,-586.8,0.00021471,2]
[349636706,1737341444517,-1457.5,0.00021471,2]
[349636707,1737341444526,-500.0,0.00021471,2]
[349636708,1737341444536,-619.56248171,0.00021471,2]
[349636709,1737341444545,-500.0,0.00021471,2]
[349636710,1737341444555,-2521.35,0.00021471,2]
[349636711,1737341444565,-513.92,0.00021471,2]
[349636712,1737341444575,-500.0,0.00021471,2]
[349636713,1737341444584,-3099.61,0.00021471,2]
[349636714,1737341444594,-500.0,0.00021471,2]
[349636715,1737341444607,-969.04,0.00021471,2]
[349636716,1737341444617,-1240.827767,0.00021471,2]
[349636717,1737341444627,-3420.9,0.00021471,2]
[349636718,1737341444636,-1029.34,0.00021471,2]
[349636719,1737341444646,-1092.41,0.00021471,2]
[349636720,1737341444655,-500.0,0.00021471,2]
[349636721,1737341444665,-1107.64,0.00021471,2]
[349636722,1737341444674,-500.0,0.00021471,2]
[349636723,1737341444684,-1018.41,0.00021471,2]
[349636724,1737341444694,-500.0,0.00021471,2]
[349636725,1737341444703,-500.0,0.00021471,2]
[349636726,1737341444712,-500.0,0.00021471,2]
[349636727,1737341444723,-684.9,0.00021471,2]
[349636728,1737341444732,-1262.65,0.00021471,2]
[349636729,1737341444741,-500.0,0.00021471,2]
[349636730,1737341444750,-2322.28,0.00021471,2]
[349636731,1737341444759,-1365.95,0.00021471,2]
[349636732,1737341444768,-500.0,0.00021471,2]
[349636733,1737341444777,-500.0,0.00021471,2]
[349636734,1737341444786,-522.4,0.00021471,2]
[349636735,1737341444795,-500.0,0.00021471,2]
[349636736,1737341444804,-1186.3,0.00021471,2]
[349636737,1737341444814,-500.0,0.00021471,2]
[349636738,1737341444823,-500.0,0.00021471,2]
[349636739,1737341444832,-1071.9,0.00021471,2]
[349636740,1737341444841,-500.0,0.00021471,2]
[349636741,1737341444853,-500.0,0.00021471,2]
[349636742,1737341444862,-2285.72,0.00021471,2]
[349636743,1737341444871,-500.0,0.00021471,2]
[349636744,1737341444881,-900.62,0.00021471,2]
[349636745,1737341444890,-1897.1,0.00021471,2]
[349636746,1737341444900,-500.0,0.00021471,2]
[349636747,1737341444909,-2315.02,0.00021471,2]
[349636748,1737341444918,-615.3,0.00021471,2]
[349636749,1737341444927,-2482.3,0.00021471,2]
[349636750,1737341444937,-757.87,0.00021471,2]
[349636751,1737341444946,-36.11766323,0.00021471,2]
[349636752,1737341444962,-463.88233677,0.00021471,2]
[349636753,1737341444972,-500.0,0.00021471,2]
[349636754,1737341444991,-429.99112272,0.00021471,2]
[349636755,1737341445332,-524.65,0.00020999,2]
[349636756,1737341445343,-500.0,0.00021196,2]